bitfinex/quotes_BTCUSD_20220205
["timestamp","ask_amount","ask_price","bid_price","bid_amount"]
[1644050045899,0.048,41514.0,41513.0,1.2316838]
[1644050046198,0.048,41514.0,41513.0,1.022291]
[1644050046401,0.00358377,41519.0,41514.0,0.5]
[1644050046598,0.00358377,41519.0,41518.0,0.04999999]
[1644050046799,0.00358377,41519.0,41518.0,0.331614]
[1644050047001,0.75,41517.0,41515.0,0.13612087]
[1644050047293,0.332117,41516.0,41514.0,0.05]
[1644050047481,0.40682164,41516.0,41514.0,0.05]
[1644050047680,0.07470464,41516.0,41514.0,0.048]
[1644050047883,0.24184516,41518.0,41514.0,0.048]
[1644050048082,0.54992157,41517.0,41514.0,0.048]
[1644050048882,0.07204132,41516.0,41514.0,0.048]
[1644050049082,0.332117,41516.0,41514.0,0.048]
[1644050049682,0.00076673,41518.0,41514.0,0.048]
[1644050050083,0.00358377,41519.0,41514.0,0.048]
[1644050050282,0.00076673,41518.0,41514.0,0.048]
[1644050051295,0.00358377,41519.0,41514.0,0.048]
[1644050051495,0.00076673,41518.0,41514.0,0.048]
[1644050051694,0.27860185,41521.0,41520.0,0.00373796]
[1644050051895,0.61071885,41521.0,41520.0,0.00373796]
[1644050052094,0.332117,41521.0,41520.0,0.00373796]
[1644050052296,0.00306644,41524.0,41520.0,0.05373795]
[1644050052501,0.017,41529.0,41523.0,0.04999999]
[1644050052895,0.017,41529.0,41524.0,0.05]
[1644050053096,0.017,41529.0,41525.0,0.22538465]
[1644050053894,0.0177666,41529.0,41525.0,0.22538465]
[1644050054773,0.017,41529.0,41525.0,0.22538465]
[1644050055165,0.0177666,41529.0,41525.0,0.22538465]
[1644050055962,0.017,41529.0,41525.0,0.22538465]
[1644050056363,0.0177666,41529.0,41526.0,0.26567939]
[1644050056567,0.0177666,41529.0,41526.0,0.31567938]
[1644050056767,0.0177666,41529.0,41526.0,0.32195337]
[1644050057372,0.017,41529.0,41526.0,0.32195337]
[1644050057569,0.00034952,41533.0,41531.0,0.1203861]
[1644050057872,0.00034952,41533.0,41532.0,0.25969659]
[1644050058267,0.00034952,41535.0,41532.0,0.25969659]
[1644050058709,0.00075632,41535.0,41532.0,0.25969659]
[1644050058908,0.00282918,41534.0,41532.0,0.25969659]
[1644050059512,0.00282918,41534.0,41532.0,0.30769659]
[1644050059713,0.00282918,41534.0,41533.0,0.04999999]
[1644050059911,0.0985855,41537.0,41532.0,0.048]
[1644050060109,0.0965855,41537.0,41531.0,0.0601921]
[1644050060309,0.0965855,41537.0,41533.0,0.04999999]
[1644050060519,0.0965855,41537.0,41532.0,0.06019]
[1644050060710,0.0965855,41537.0,41533.0,0.04999999]
[1644050061312,0.0965855,41537.0,41531.0,0.0601921]
[1644050061514,0.0965855,41537.0,41532.0,0.04999999]
[1644050061912,0.0965855,41537.0,41535.0,0.24040724]
[1644050062113,0.0965855,41537.0,41535.0,0.30059624]
[1644050062347,0.09730647,41537.0,41535.0,0.30059624]
[1644050063160,0.4982,41564.0,41538.0,0.75]
[1644050063353,0.00234946,41564.0,41563.0,0.04999999]
[1644050063552,0.02,41569.0,41564.0,0.75]
[1644050063553,0.015,41569.0,41564.0,0.75]
[1644050063749,0.0018422,41581.0,41566.0,0.04999999]
[1644050063750,0.0497545,41574.0,41566.0,0.04999999]
[1644050063949,0.0497545,41574.0,41564.0,1.1]
[1644050063950,0.0497545,41574.0,41569.0,0.65039999]
[1644050064149,0.0497545,41574.0,41570.0,0.348]
[1644050064350,0.0497545,41574.0,41573.0,0.6004]
[1644050064549,0.0497545,41574.0,41573.0,1.20721012]
[1644050064749,0.000601,41580.0,41574.0,0.75]
[1644050064950,0.000601,41580.0,41577.0,0.04999999]
[1644050065152,0.0008422,41581.0,41578.0,0.75]
[1644050065351,0.02,41589.0,41582.0,0.05]
[1644050065552,0.02,41589.0,41585.0,0.65039999]
[1644050065854,0.02,41589.0,41585.0,0.89839999]
[1644050066497,0.02,41589.0,41585.0,1.19539999]
[1644050066698,0.02,41589.0,41585.0,1.25550299]
[1644050067097,0.02,41589.0,41586.0,0.870197]
[1644050067098,0.00072719,41588.0,41586.0,0.870197]
[1644050067296,0.00072719,41588.0,41587.0,0.69839999]
[1644050067598,0.00290831,41594.0,41588.0,0.7]
[1644050067799,0.00290831,41594.0,41593.0,0.6004]
[1644050068002,0.75,41592.0,41582.0,0.6494]
[1644050068200,1.132117,41590.0,41576.0,1.021071]
[1644050068402,0.75,41590.0,41577.0,0.5]
[1644050068600,0.05,41584.0,41572.0,0.05]
[1644050068800,0.29263422,41589.0,41572.0,0.05]
[1644050068801,0.07230315,41582.0,41572.0,0.05]
[1644050068999,0.332117,41576.0,41575.0,0.05143747]
[1644050069301,0.22287578,41589.0,41575.0,0.05143747]
[1644050069302,0.09179948,41595.0,41582.0,0.00674429]
[1644050069600,0.015,41599.0,41594.0,0.04999999]
[1644050069852,0.015,41599.0,41597.0,0.04979999]
[1644050069853,0.0002,41598.0,41597.0,0.04979999]
[1644050070051,0.015,41599.0,41597.0,0.04979999]
[1644050070251,0.015,41599.0,41597.0,0.42568545]
[1644050070453,0.015,41599.0,41598.0,0.331847]
[1644050071250,0.015,41599.0,41598.0,0.55960945]
[1644050071449,0.015,41599.0,41598.0,0.85960945]
[1644050071851,0.015,41599.0,41598.0,0.55960945]
[1644050072150,0.015,41599.0,41598.0,0.65960945]
[1644050072449,0.015,41599.0,41598.0,0.331847]
[1644050072652,0.08987572,41599.0,41598.0,0.331847]
[1644050072955,0.08987572,41599.0,41593.0,0.02147581]
[1644050072956,0.332102,41598.0,41593.0,0.02147581]
[1644050073153,0.0002,41594.0,41593.0,0.02147581]
[1644050073601,0.2378423,41594.0,41593.0,0.02147581]
[1644050073797,0.0002,41594.0,41591.0,0.33191]
[1644050073998,0.0002,41594.0,41592.0,0.3]
[1644050074200,0.015,41599.0,41593.0,0.38169499]
[1644050074399,0.015,41599.0,41596.0,0.04979999]
[1644050074598,0.015,41599.0,41592.0,0.331902]
[1644050074599,0.0002,41597.0,41592.0,0.331902]
[1644050074800,0.0002,41593.0,41592.0,0.331902]
[1644050075705,0.0002,41593.0,41588.0,0.01877605]
[1644050075900,0.0002,41589.0,41588.0,0.01877605]
[1644050076301,0.0482,41589.0,41588.0,0.01877605]
[1644050076602,0.19837314,41589.0,41588.0,0.01877605]
[1644050076801,0.24637314,41589.0,41588.0,0.01877605]
[1644050077000,0.57847514,41589.0,41588.0,0.01877605]
[1644050077647,0.57847514,41589.0,41583.0,0.01920102]
[1644050077849,0.0002,41584.0,41583.0,0.01920102]
[1644050078051,0.048,41589.0,41583.0,0.35118602]
[1644050078052,0.0187,41589.0,41583.0,0.35118602]
[1644050078250,0.0187,41589.0,41588.0,0.04979999]
[1644050078450,0.01904984,41589.0,41588.0,0.38174099]
[1644050078653,0.0187,41589.0,41588.0,0.331941]
[1644050078848,0.0189,41589.0,41588.0,0.331941]
[1644050079050,0.0189,41589.0,41586.0,0.331958]
[1644050079251,0.0187,41589.0,41588.0,0.04979999]
[1644050079450,0.0189,41589.0,41588.0,0.331941]
[1644050080252,0.0189,41589.0,41588.0,0.55106286]
[1644050080451,0.0189,41589.0,41588.0,0.60086285]
[1644050080997,0.0189,41589.0,41588.0,0.55106286]
[1644050081600,0.0189,41589.0,41583.0,0.06900101]
[1644050081799,0.0010771,41591.0,41583.0,0.04979999]
[1644050082099,0.0010771,41591.0,41583.0,0.331984]
[1644050082100,0.0002,41584.0,41583.0,0.331984]
[1644050082500,0.0002,41584.0,41583.0,0.63812675]
[1644050082700,0.0002,41584.0,41583.0,0.58832676]
[1644050084402,0.0002,41584.0,41583.0,0.73812675]
[1644050084601,0.0002,41584.0,41583.0,0.68832676]
[1644050085251,0.0002,41584.0,41583.0,0.73812675]
[1644050085849,0.0002,41584.0,41583.0,0.68832676]
[1644050086454,0.00072717,41590.0,41584.0,0.060109]
[1644050086650,0.0003506,41588.0,41585.0,0.45218171]
[1644050086854,0.00072717,41590.0,41587.0,0.38195099]
[1644050087052,0.00072717,41590.0,41589.0,0.04999999]
[1644050087250,0.00072717,41590.0,41589.0,0.43193199]
[1644050087451,0.02002413,41607.0,41590.0,0.75]
[1644050087653,0.27744844,41604.0,41595.0,0.20884161]
[1644050087854,0.01928508,41603.0,41596.0,0.35355376]
[1644050088255,0.01928508,41603.0,41597.0,0.3]
[1644050088508,0.05,41604.0,41597.0,0.3]
[1644050088509,0.05,41604.0,41597.0,0.331854]
[1644050089309,0.21962303,41600.0,41597.0,0.331854]
[1644050089511,0.21962303,41600.0,41594.0,0.120181]
[1644050089714,0.05,41604.0,41595.0,0.05]
[1644050089914,0.05,41604.0,41596.0,0.331863]
[1644050090114,0.4,41604.0,41589.0,0.1202]
[1644050090313,0.4,41604.0,41580.0,0.69768248]
[1644050090314,0.05,41601.0,41586.0,0.04999999]
[1644050090514,0.28327464,41603.0,41586.0,0.04999999]
[1644050090715,0.06544501,41599.0,41591.0,0.31139819]
[1644050090914,0.23625526,41601.0,41596.0,0.25756253]
[1644050091114,0.23625526,41601.0,41594.0,0.04999999]
[1644050091315,0.00077505,41597.0,41592.0,0.3319]
[1644050091516,0.00077505,41597.0,41592.0,0.391997]
[1644050091717,0.00077505,41597.0,41594.0,0.331884]
[1644050092115,0.00077505,41597.0,41594.0,0.381884]
[1644050092348,0.05,41604.0,41602.0,0.27279897]
[1644050092550,0.05309971,41604.0,41602.0,0.27279897]
[1644050092951,0.05309971,41604.0,41603.0,0.6318]
[1644050093149,0.05309971,41604.0,41603.0,0.91818085]
[1644050093350,0.02002413,41607.0,41604.0,0.75]
[1644050093554,0.001,41612.0,41606.0,0.331771]
[1644050093555,0.0154479,41609.0,41606.0,0.331771]
[1644050093749,0.0154479,41609.0,41607.0,0.35]
[1644050093948,0.0008958,41610.0,41609.0,0.6]
[1644050094252,0.0008958,41610.0,41609.0,0.681743]
[1644050094552,0.0008958,41610.0,41609.0,0.381743]
[1644050094847,0.0009224,41614.0,41611.0,0.25169697]
[1644050095048,0.0009224,41614.0,41612.0,0.331714]
[1644050095250,0.01989007,41619.0,41617.0,0.0001317]
[1644050095549,0.24804916,41618.0,41617.0,0.0001317]
[1644050095751,0.31598908,41618.0,41617.0,0.0001317]
[1644050096002,0.64834352,41618.0,41617.0,0.0001317]
[1644050096212,0.98483137,41617.0,41599.0,0.060091]
[1644050096411,0.1334234,41609.0,41598.0,0.392]
[1644050096606,0.54916792,41605.0,41598.0,0.392]
[1644050096809,0.21706592,41605.0,41598.0,0.392]
[1644050097006,0.06901699,41599.0,41598.0,0.392]
[1644050097405,0.31081124,41599.0,41598.0,0.331847]
[1644050097605,0.31081124,41599.0,41597.0,0.02495]
[1644050097808,0.05,41598.0,41590.0,0.3747]
[1644050098007,0.2522805,41592.0,41590.0,0.3747]
[1644050098206,0.06641945,41591.0,41580.0,0.00626448]
[1644050098407,0.06641945,41591.0,41580.0,0.05626447]
[1644050098606,0.28831343,41590.0,41580.0,0.05626447]
[1644050098806,0.28831343,41590.0,41583.0,0.25920787]
[1644050099009,0.32591443,41596.0,41585.0,0.04999999]
[1644050099208,0.1,41597.0,41585.0,0.04999999]
[1644050099411,0.4796,41601.0,41585.0,0.04999999]
[1644050099606,0.2,41601.0,41589.0,0.00077958]
[1644050099850,0.1,41601.0,41589.0,0.00077958]
[1644050100049,0.1,41601.0,41590.0,0.331922]
[1644050100050,0.06469637,41595.0,41590.0,0.331922]
[1644050100448,0.06469637,41595.0,41590.0,0.33192]
[1644050100651,0.06469637,41595.0,41581.0,0.28444218]
[1644050100849,0.332102,41592.0,41590.0,0.00077956]
[1644050101048,0.55,41591.0,41580.0,0.00197508]
[1644050101350,0.1,41591.0,41581.0,0.332003]
[1644050101551,0.22339705,41593.0,41588.0,0.21544359]
[1644050101751,0.15077927,41606.0,41592.0,0.21480983]
[1644050101752,0.00077927,41606.0,41592.0,0.21480983]
[1644050101959,0.00035129,41596.0,41594.0,0.04999999]
[1644050102154,0.0209564,41603.0,41595.0,0.631872]
[1644050102351,0.0209564,41603.0,41600.0,0.331827]
[1644050102352,0.00035129,41602.0,41600.0,0.331827]
[1644050102551,0.0209564,41603.0,41590.0,0.3687]
[1644050102751,0.07476435,41600.0,41590.0,0.3687]
[1644050102951,0.07476435,41600.0,41591.0,0.331904]
[1644050103354,0.00030174,41599.0,41593.0,0.23746103]
[1644050103601,0.00030174,41599.0,41594.0,0.331883]
[1644050103803,0.00030174,41599.0,41596.0,0.25757764]
[1644050104003,0.00030174,41599.0,41597.0,0.331856]
[1644050104203,0.00035129,41601.0,41597.0,0.331856]
[1644050104404,0.1976385,41602.0,41597.0,0.331856]
[1644050104405,0.00035129,41602.0,41597.0,0.68185599]
[1644050104608,0.00030176,41600.0,41597.0,0.681856]
[1644050104802,0.00030176,41600.0,41599.0,0.04999999]
[1644050105001,0.00030176,41600.0,41599.0,0.68371542]
[1644050105602,0.00035129,41605.0,41599.0,0.68371542]
[1644050105801,0.33049134,41607.0,41599.0,0.68371542]
[1644050105802,0.0007803,41602.0,41599.0,0.68371542]
[1644050106004,0.0007803,41602.0,41599.0,0.63371543]
[1644050106401,0.0007803,41602.0,41600.0,0.04999999]
[1644050106702,0.00035129,41606.0,41596.0,0.52587928]
[1644050106901,0.26358896,41607.0,41598.0,0.04999999]
[1644050106902,0.00078028,41603.0,41598.0,0.04999999]
[1644050107102,0.00078028,41603.0,41599.0,0.331836]
[1644050107354,0.00113157,41603.0,41599.0,0.331836]
[1644050107550,0.00078028,41603.0,41599.0,0.331835]
[1644050107949,0.00035129,41604.0,41599.0,0.060087]
[1644050108150,0.00078028,41603.0,41601.0,0.04999999]
[1644050108352,0.00078028,41603.0,41602.0,0.33181]
[1644050109152,0.00035129,41605.0,41603.0,0.25707811]
[1644050109352,0.00078027,41605.0,41603.0,0.25707811]
[1644050109552,0.00078027,41605.0,41604.0,0.331791]
[1644050110054,0.00078027,41605.0,41601.0,0.04999999]
[1644050110252,0.00035129,41606.0,41601.0,0.04999999]
[1644050110454,0.00035129,41610.0,41602.0,0.331808]
[1644050110655,0.00073137,41607.0,41601.0,0.04999999]
[1644050111098,0.00073137,41607.0,41604.0,0.24124734]
[1644050111502,0.56626034,41613.0,41604.0,0.24124734]
[1644050111503,0.00035129,41612.0,41604.0,0.24124734]
[1644050111702,0.00108265,41608.0,41604.0,0.24124734]
[1644050111902,0.00073136,41608.0,41605.0,0.04999999]
[1644050112103,0.00073136,41608.0,41606.0,0.331772]
[1644050112709,0.00035129,41612.0,41604.0,0.24124734]
[1644050112904,0.00030301,41609.0,41602.0,0.060083]
[1644050113504,0.08315199,41606.0,41602.0,0.331801]
[1644050113704,0.00035129,41608.0,41601.0,0.25867602]
[1644050113905,0.24221774,41605.0,41600.0,0.120163]
[1644050114104,0.24221774,41605.0,41601.0,0.20937305]
[1644050114305,0.24221774,41605.0,41600.0,0.120163]
[1644050114605,0.24256903,41605.0,41597.0,0.28649459]
[1644050114851,0.24256903,41605.0,41596.0,0.06929232]
[1644050114852,0.07080056,41601.0,41598.0,0.331839]
[1644050115051,0.07080056,41601.0,41599.0,0.331837]
[1644050115257,0.07080056,41601.0,41596.0,0.01929233]
[1644050115450,0.22677171,41600.0,41596.0,0.01929233]
[1644050115650,0.24972572,41598.0,41596.0,0.01929233]
[1644050116551,0.24972572,41598.0,41590.0,0.62617982]
[1644050116750,0.25007701,41598.0,41592.0,0.31027521]
[1644050116952,0.25007701,41598.0,41593.0,0.331892]
[1644050117552,0.20091423,41599.0,41593.0,0.331892]
[1644050117755,0.00035165,41598.0,41593.0,0.331892]
[1644050117950,0.20169592,41599.0,41593.0,0.331892]
[1644050118150,0.00035165,41598.0,41593.0,0.331892]
[1644050118351,0.20204757,41599.0,41593.0,0.331892]
[1644050118602,0.00035165,41598.0,41593.0,0.331892]
[1644050119204,0.20121536,41599.0,41593.0,0.331892]
[1644050119502,0.00035165,41598.0,41593.0,0.331891]
[1644050119701,0.20156701,41599.0,41594.0,0.21929036]
[1644050119906,0.00035165,41598.0,41594.0,0.21929036]
[1644050120100,0.20121536,41599.0,41594.0,0.21929036]
[1644050120304,0.00035165,41598.0,41594.0,0.21929036]
[1644050120501,0.00030113,41599.0,41594.0,0.21929036]
[1644050120703,0.00035165,41598.0,41595.0,0.331874]
[1644050120900,0.00065278,41599.0,41595.0,0.331874]
[1644050121105,0.00035165,41600.0,41595.0,0.331874]
[1644050121302,0.00030113,41599.0,41595.0,0.331874]
[1644050121901,0.06644844,41599.0,41595.0,0.331874]
[1644050122358,0.06614731,41599.0,41594.0,0.21929036]
[1644050122557,0.06692865,41599.0,41594.0,0.21929036]
[1644050123556,0.06614731,41599.0,41594.0,0.21929036]
[1644050123758,0.27364589,41596.0,41592.0,0.26027522]
[1644050123958,0.27364589,41596.0,41590.0,0.3687]
[1644050124660,0.332102,41595.0,41590.0,0.3687]
[1644050124959,0.21281407,41592.0,41590.0,0.3687]
[1644050125158,0.21281407,41592.0,41588.0,0.00078152]
[1644050125159,0.06673244,41590.0,41588.0,0.00078152]
[1644050125359,0.332102,41589.0,41588.0,0.00078152]
[1644050125564,0.332102,41589.0,41586.0,6.424e-05]
[1644050125761,0.332102,41587.0,41586.0,6.424e-05]
[1644050126001,0.01861848,41587.0,41580.0,0.3896]
[1644050126202,0.21990263,41585.0,41582.0,0.22521398]
[1644050126403,0.06732237,41582.0,41581.0,0.332005]
[1644050126601,0.21990263,41585.0,41578.0,0.01959888]
[1644050126802,0.21990263,41585.0,41578.0,0.07971888]
[1644050127000,0.21990263,41585.0,41578.0,0.12971887]
[1644050127201,0.21990263,41585.0,41579.0,0.332022]
[1644050127402,0.21990263,41585.0,41579.0,0.33250243]
[1644050127900,0.28536149,41585.0,41579.0,0.33250243]
[1644050128105,0.28536149,41585.0,41582.0,0.23506926]
[1644050128601,0.28536149,41585.0,41581.0,0.00048041]
[1644050129602,0.55967833,41584.0,41578.0,0.01959888]
[1644050129853,0.65967833,41584.0,41578.0,0.01959888]
[1644050130054,0.65967833,41584.0,41573.0,0.3861]
[1644050130252,0.28150292,41578.0,41573.0,0.3861]
[1644050130455,0.28150292,41578.0,41574.0,0.332069]
[1644050130953,0.28150292,41578.0,41573.0,0.3861]
[1644050131151,0.19907361,41577.0,41574.0,0.332072]
[1644050131352,0.19907361,41577.0,41573.0,0.3861]
[1644050131754,0.19907361,41577.0,41568.0,0.01985985]
[1644050132054,0.24337361,41577.0,41566.0,0.64905442]
[1644050132257,0.24337361,41577.0,41573.0,0.00078116]
[1644050132455,0.1901221,41576.0,41573.0,0.00078116]
[1644050133263,0.1901221,41576.0,41566.0,0.59905443]
[1644050133510,0.0443,41575.0,41572.0,0.00078117]
[1644050133809,0.332102,41574.0,41572.0,0.00078117]
[1644050134007,0.376402,41573.0,41572.0,0.00078117]
[1644050134406,0.376402,41573.0,41563.0,0.07032935]
[1644050134407,0.476402,41573.0,41563.0,0.02032936]
[1644050134605,0.476402,41573.0,41570.0,0.00078119]
[1644050135609,0.22404171,41566.0,41562.0,0.25976488]
[1644050135811,0.06855687,41567.0,41562.0,0.25976488]
[1644050135812,0.06855687,41567.0,41563.0,0.332102]
[1644050136006,0.0443,41573.0,41563.0,0.332102]
[1644050136209,0.29907361,41577.0,41571.0,0.26144048]
[1644050136509,0.29907361,41577.0,41569.0,0.04999999]
[1644050136708,0.29567361,41577.0,41569.0,0.04999999]
[1644050136907,0.26043446,41574.0,41571.0,0.00078067]
[1644050137749,0.1,41576.0,41571.0,0.00078067]
[1644050137950,0.1,41576.0,41572.0,0.332094]
[1644050138148,0.1,41576.0,41570.0,0.21982023]
[1644050138353,0.1,41576.0,41571.0,0.332099]
[1644050138949,0.33239612,41577.0,41570.0,0.21982023]
[1644050139151,0.33239612,41577.0,41570.0,0.21903956]
[1644050139351,0.43239612,41577.0,41571.0,0.00078066]
[1644050139551,0.43239612,41577.0,41575.0,0.26746449]
[1644050139748,0.43239612,41577.0,41571.0,0.00078066]
[1644050140352,0.43239612,41577.0,41569.0,0.31854483]
[1644050140550,0.43239612,41577.0,41572.0,0.00078066]
[1644050141603,0.43239612,41577.0,41564.0,0.17027199]
[1644050141805,0.23560309,41569.0,41564.0,0.17027199]
[1644050142004,0.23560309,41569.0,41565.0,0.332102]
[1644050142204,0.23560309,41569.0,41568.0,0.2352576]
[1644050142406,0.23560309,41569.0,41568.0,0.5673596]
[1644050143006,0.08865022,41577.0,41568.0,0.5673596]
[1644050143205,0.08865022,41577.0,41569.0,0.332102]
[1644050143406,0.08865022,41577.0,41570.0,0.332102]
[1644050143611,0.08865022,41577.0,41568.0,0.2352576]
[1644050144006,0.23403088,41571.0,41568.0,0.2352576]
[1644050144308,0.23403088,41571.0,41570.0,0.00078067]
[1644050145148,0.23403088,41571.0,41564.0,0.04999999]
[1644050145350,0.23403088,41571.0,41568.0,0.0007807]
[1644050146453,0.23403088,41571.0,41561.0,0.02]
[1644050146652,0.23403088,41571.0,41567.0,0.00078071]
[1644050147553,0.23403088,41571.0,41561.0,0.23840642]
[1644050147850,0.25739958,41564.0,41562.0,0.332102]
[1644050149302,0.25739958,41564.0,41561.0,0.02]
[1644050149503,0.25739958,41564.0,41562.0,0.332102]
[1644050149906,0.25739958,41564.0,41562.0,0.29059974]
[1644050150106,0.06958399,41565.0,41563.0,0.332102]
[1644050150306,0.01969407,41576.0,41563.0,0.332102]
[1644050150508,0.26596746,41573.0,41567.0,0.2543878]
[1644050150706,0.26596746,41573.0,41568.0,0.332102]
[1644050150908,0.26596746,41573.0,41567.0,0.2543878]
[1644050151105,0.19384233,41570.0,41567.0,0.2543878]
[1644050151306,0.06499196,41569.0,41567.0,0.2543878]
[1644050151704,0.06499196,41569.0,41565.0,0.12029469]
[1644050152105,0.06499196,41569.0,41566.0,0.060148]
[1644050153947,0.19384233,41570.0,41566.0,0.060148]
[1644050154348,0.1,41573.0,41566.0,0.060148]
[1644050154550,0.1,41573.0,41567.0,0.332102]
[1644050154749,0.02052981,41580.0,41570.0,0.060142]
[1644050155349,0.55754194,41580.0,41572.0,0.20055389]
[1644050155749,0.12052981,41580.0,41572.0,0.20055389]
[1644050156197,0.12052981,41580.0,41574.0,0.00078015]
[1644050156599,0.1,41580.0,41574.0,0.00078015]
[1644050156802,0.33701217,41582.0,41576.0,0.21446262]
[1644050157000,0.23285008,41579.0,41576.0,0.21446262]
[1644050158699,0.23285008,41579.0,41575.0,0.00078013]
[1644050158899,0.1,41582.0,41575.0,0.00078013]
[1644050159103,1.6005,41588.0,41580.0,0.04999999]
[1644050159310,0.7329,41588.0,41577.0,0.04999999]
[1644050159774,0.7329,41588.0,41577.0,0.34999999]
[1644050159966,0.22521545,41584.0,41577.0,0.34999999]
[1644050160467,0.22521545,41584.0,41577.0,0.04999999]
[1644050161069,0.22521545,41584.0,41578.0,0.21830732]
[1644050161667,0.28992841,41584.0,41578.0,0.21830732]
[1644050163170,0.28992841,41584.0,41575.0,0.120252]
[1644050163502,0.29444671,41577.0,41574.0,0.332073]
[1644050164102,0.29444671,41577.0,41573.0,0.27088256]
[1644050164607,0.29444671,41577.0,41574.0,0.332072]
[1644050164806,0.29444671,41577.0,41573.0,0.00078068]
[1644050165005,0.34444671,41577.0,41573.0,0.00078068]
[1644050165204,0.39444671,41577.0,41573.0,0.00078068]
[1644050165402,0.49444671,41577.0,41573.0,0.00078068]
[1644050165603,0.25832263,41576.0,41565.0,0.28626014]
[1644050165804,0.07069017,41566.0,41565.0,0.23626015]
[1644050166005,0.07069017,41566.0,41565.0,0.56836215]
[1644050166206,0.35,41575.0,41565.0,0.54788542]
[1644050166403,0.15,41575.0,41569.0,0.05]
[1644050166602,0.24883038,41574.0,41567.0,0.060146]
[1644050167004,0.53204065,41574.0,41567.0,0.060146]
[1644050167450,0.23414885,41571.0,41567.0,0.060146]
[1644050167649,0.06965597,41570.0,41567.0,0.060146]
[1644050169651,0.06965597,41570.0,41566.0,0.00078024]
[1644050170549,0.06965597,41570.0,41564.0,0.332102]
[1644050170750,0.06965597,41570.0,41566.0,0.00078024]
[1644050171602,0.06965597,41570.0,41562.0,0.17028499]
[1644050171603,0.06965597,41570.0,41563.0,0.21716051]
[1644050171803,0.2437797,41566.0,41564.0,0.332102]
[1644050173211,0.2437797,41566.0,41563.0,0.00078028]
[1644050173408,0.26529504,41565.0,41563.0,0.00078028]
[1644050173609,0.61087467,41565.0,41563.0,0.00078028]
[1644050173813,0.75,41563.0,41556.0,0.05]
[1644050174008,0.332102,41562.0,41556.0,0.05]
[1644050174211,0.3,41561.0,41556.0,0.05]
[1644050174509,0.26559137,41559.0,41556.0,0.05]
[1644050174753,0.05,41557.0,41556.0,0.05]
[1644050174947,0.430202,41557.0,41556.0,0.05]
[1644050175156,0.430202,41557.0,41551.0,0.02]
[1644050175157,0.40015108,41555.0,41551.0,0.02]
[1644050175350,0.332102,41553.0,41551.0,0.02]
[1644050175549,0.16804908,41555.0,41551.0,0.02]
[1644050175550,0.380202,41552.0,41551.0,0.02]
[1644050175749,0.380202,41552.0,41544.0,0.20584953]
[1644050175750,0.75,41550.0,41544.0,0.20584953]
[1644050175951,0.75,41550.0,41541.0,0.02]
[1644050175952,0.08324729,41548.0,41541.0,0.02]
[1644050176150,0.332102,41547.0,41541.0,0.02]
[1644050176352,0.0481,41546.0,41541.0,0.02]
[1644050176651,0.332102,41545.0,41541.0,0.02]
[1644050176949,0.332102,41543.0,41541.0,0.02]
[1644050177250,0.0481,41542.0,41541.0,0.02]
[1644050177447,0.380262,41542.0,41541.0,0.02]
[1644050177646,0.380262,41542.0,41541.0,0.0134651]
[1644050177856,0.08791356,41535.0,41533.0,0.20584953]
[1644050178049,0.2670332,41540.0,41539.0,0.00078003]
[1644050178050,0.66968984,41540.0,41539.0,0.00078003]
[1644050178248,1.17381106,41540.0,41539.0,0.00078003]
[1644050178902,1.17381106,41540.0,41531.0,0.02]
[1644050179202,0.07554263,41533.0,41531.0,0.02]
[1644050179603,0.3066245,41533.0,41531.0,0.02]
[1644050179805,0.4066245,41533.0,41531.0,0.02]
[1644050180203,0.17554263,41533.0,41531.0,0.02]
[1644050180809,0.1,41533.0,41531.0,0.02]
[1644050181005,0.28794153,41535.0,41531.0,0.02]
[1644050181506,0.24769272,41534.0,41531.0,0.02078013]
[1644050182258,0.29579272,41534.0,41531.0,0.02078013]
[1644050182652,0.29579272,41534.0,41531.0,0.02]
[1644050184754,0.0481,41534.0,41531.0,0.02]
[1644050184955,0.0481,41534.0,41532.0,0.332162]
[1644050186102,0.0481,41534.0,41531.0,0.02]
[1644050186501,0.0481,41534.0,41531.0,0.02073456]
[1644050187302,0.0481,41534.0,41531.0,0.02]
[1644050187903,0.43188726,41537.0,41531.0,0.02]
[1644050188104,0.45164547,41537.0,41531.0,0.02]
[1644050188702,0.45164547,41537.0,41532.0,0.00073455]
[1644050188903,0.332162,41536.0,41532.0,0.00073455]
[1644050189107,0.30127118,41535.0,41532.0,0.00073455]
[1644050189304,0.45127118,41535.0,41532.0,0.00073455]
[1644050189760,0.45127118,41535.0,41531.0,0.02]
[1644050189952,0.45127118,41535.0,41531.0,0.02073376]
[1644050190957,0.45127118,41535.0,41531.0,0.02]
[1644050191156,0.45127118,41535.0,41531.0,0.02073376]
[1644050191157,0.06830881,41532.0,41531.0,0.02073376]
[1644050191355,0.78009691,41532.0,41531.0,0.02073376]
[1644050191753,0.88009691,41532.0,41531.0,0.02073376]
[1644050192153,1.15711298,41532.0,41531.0,0.02]
[1644050194403,1.10901298,41532.0,41531.0,0.02]
[1644050198552,0.75,41531.0,41529.0,0.00073383]
[1644050198760,0.75,41531.0,41519.0,0.05504599]
[1644050198761,0.75,41529.0,41519.0,0.05504599]
[1644050198955,1.130262,41528.0,41519.0,0.005046]
[1644050199151,0.3,41527.0,41519.0,0.005046]
[1644050199350,0.26313415,41525.0,41519.0,0.005046]
[1644050199550,0.08921853,41523.0,41519.0,0.005046]
[1644050199750,0.0481,41522.0,41519.0,0.005046]
[1644050201412,0.08600541,41521.0,41519.0,0.005046]
[1644050201606,0.30041847,41520.0,41519.0,0.005046]
[1644050201810,0.332162,41518.0,41511.0,0.02]
[1644050202016,0.332162,41518.0,41503.0,0.04999999]
[1644050202017,0.08493754,41504.0,41503.0,0.38216199]
[1644050202324,1.16447811,41516.0,41503.0,0.04999999]
[1644050202507,0.0481,41515.0,41503.0,0.04999999]
[1644050202708,0.06726872,41504.0,41503.0,0.04999999]
[1644050202908,0.06726872,41504.0,41502.0,0.00019442]
[1644050203108,0.06726872,41504.0,41501.0,0.02]
[1644050203309,0.0481,41503.0,41501.0,0.02]
[1644050203508,0.0481,41503.0,41497.0,0.00019442]
[1644050203707,0.56054422,41502.0,41496.0,0.05]
[1644050203916,0.23699651,41498.0,41496.0,0.05019442]
[1644050204109,0.41326579,41497.0,41496.0,0.00665711]